bitfinex/quotes_BTCUSD_20251010
["timestamp","ask_amount","ask_price","bid_price","bid_amount"]
[1760112435828,0.27355566,119170.0,119160.0,0.27558155]
[1760112436444,0.44314313,119170.0,119160.0,0.16784155]
[1760112436680,0.73730793,119170.0,119160.0,0.16784155]
[1760112436986,0.56948046,119170.0,119160.0,0.16784155]
[1760112437169,0.56772046,119170.0,119160.0,0.37031155]
[1760112437396,0.32080046,119170.0,119160.0,0.37031155]
[1760112437584,0.27343566,119170.0,119160.0,0.37031155]
[1760112438027,0.02663566,119170.0,119160.0,0.37031155]
[1760112438151,0.02663566,119170.0,119160.0,1.09243952]
[1760112438358,0.00052904,119180.0,119170.0,0.16782747]
[1760112438778,0.00052904,119180.0,119170.0,1.03061544]
[1760112439036,0.00052904,119180.0,119170.0,1.12257734]
[1760112439700,0.00052904,119180.0,119170.0,1.37033734]
[1760112439935,0.00052904,119180.0,119170.0,1.12357734]
[1760112440158,0.00052904,119180.0,119170.0,1.36929734]
[1760112440401,0.00052904,119180.0,119170.0,1.37125734]
[1760112440841,0.00052904,119180.0,119170.0,1.37025734]
[1760112441285,0.00052904,119180.0,119170.0,1.37125734]
[1760112441747,0.00052904,119180.0,119170.0,1.37025734]
[1760112441968,0.00052904,119180.0,119170.0,1.37121734]
[1760112442189,0.00052904,119180.0,119170.0,1.37021734]
[1760112442425,0.00052904,119180.0,119170.0,1.37121734]
[1760112442659,0.00052904,119180.0,119170.0,0.71329608]
[1760112442910,0.00052904,119180.0,119170.0,1.18878405]
[1760112443142,0.00052904,119180.0,119170.0,0.27756747]
[1760112443370,0.00052904,119180.0,119170.0,0.52420747]
[1760112443595,0.00052904,119180.0,119170.0,0.27756747]
[1760112443596,0.01528904,119180.0,119170.0,0.27756747]
[1760112443816,0.18471243,119180.0,119170.0,0.16982747]
[1760112444052,0.43135243,119180.0,119170.0,0.002]
[1760112444387,0.85652539,119180.0,119170.0,0.002]
[1760112444480,0.85652539,119180.0,119170.0,0.001]
[1760112444718,1.57865336,119180.0,119170.0,0.001]
[1760112444962,0.80861539,119180.0,119170.0,0.002]
[1760112445210,0.392552,119180.0,119170.0,0.21575747]
[1760112445451,0.00052904,119180.0,119170.0,0.37229747]
[1760112445669,0.00052904,119180.0,119170.0,0.37129747]
[1760112445884,0.00052904,119180.0,119170.0,0.27656747]
[1760112446318,0.01528904,119180.0,119170.0,0.27556747]
[1760112446567,0.00052904,119180.0,119170.0,0.37029747]
[1760112446796,0.00052904,119180.0,119170.0,1.09242544]
[1760112447024,0.00052904,119180.0,119170.0,1.12257734]
[1760112447879,0.00052904,119180.0,119170.0,1.2056994]
[1760112448316,0.00052904,119180.0,119170.0,1.2066994]
[1760112448754,0.00052904,119180.0,119170.0,0.48457143]
[1760112448976,0.00052904,119180.0,119170.0,1.4533394]
[1760112449200,0.00052904,119180.0,119170.0,1.4543394]
[1760112450138,0.00052904,119180.0,119170.0,0.73221143]
[1760112450571,0.00052904,119180.0,119170.0,1.4543394]
[1760112451694,0.38223417,119220.0,119210.0,0.16777116]
[1760112451695,0.02253729,119220.0,119210.0,0.16777116]
[1760112451921,0.61275656,119230.0,119220.0,0.16775708]
[1760112452141,0.97435988,119230.0,119220.0,0.27826715]
[1760112452579,0.97596988,119230.0,119210.0,0.21294116]
[1760112452832,0.68193236,119230.0,119210.0,0.21294116]
[1760112453063,0.68208367,119230.0,119220.0,0.16775708]
[1760112453311,1.00430838,119230.0,119220.0,0.16775708]
[1760112453541,0.75327537,119230.0,119220.0,0.27846708]
[1760112453773,0.0079286,119230.0,119220.0,1.79418901]
[1760112454007,0.0002,119240.0,119230.0,0.19789491]
[1760112454238,0.0002,119240.0,119230.0,1.14103494]
[1760112454473,0.0002,119240.0,119230.0,1.20657494]
[1760112454699,0.0002,119240.0,119230.0,1.45317494]
[1760112454953,0.0002,119240.0,119230.0,1.20657494]
[1760112455212,0.0002,119240.0,119230.0,1.53381494]
[1760112455690,0.0002,119240.0,119230.0,1.53281494]
[1760112456413,0.04486164,119260.0,119250.0,1.95197082]
[1760112456643,0.04486164,119260.0,119250.0,1.68533491]
[1760112456901,0.04486164,119260.0,119250.0,1.51739491]
[1760112457123,0.04486164,119260.0,119250.0,2.59687478]
[1760112457336,1e-08,119270.0,119260.0,1.25998069]
[1760112457567,0.0002,119310.0,119260.0,1.25998069]
[1760112457568,0.18809745,119330.0,119310.0,0.02499999]
[1760112457799,0.09102142,119330.0,119320.0,0.27832649]
[1760112458005,0.09102142,119330.0,119320.0,1.11917445]
[1760112458006,0.00789936,119330.0,119320.0,1.11917445]
[1760112458433,0.00789936,119330.0,119320.0,0.39704648]
[1760112458868,0.00789936,119330.0,119320.0,0.64360648]
[1760112459094,0.00789936,119330.0,119320.0,1.36569445]
[1760112459518,0.00789936,119330.0,119320.0,1.11917445]
[1760112459778,0.00789936,119330.0,119320.0,1.36569445]
[1760112460208,0.00789936,119330.0,119320.0,0.22942999]
[1760112460434,0.25862386,119330.0,119320.0,0.07016999]
[1760112460649,0.16761649,119320.0,119310.0,0.07016999]
[1760112460875,0.16763054,119310.0,119300.0,0.07016999]
[1760112461113,0.17537859,119310.0,119300.0,0.07016999]
[1760112461541,0.25850065,119310.0,119300.0,0.02499999]
[1760112461756,0.16765864,119290.0,119280.0,0.04517]
[1760112461973,0.17540669,119290.0,119280.0,0.07016999]
[1760112462208,0.30161625,119290.0,119280.0,0.19267269]
[1760112462430,0.46927489,119290.0,119280.0,0.07016999]
[1760112462639,0.30161625,119290.0,119280.0,0.30338269]
[1760112462861,0.30161625,119290.0,119280.0,0.07016999]
[1760112463085,0.46942615,119290.0,119280.0,0.02499999]
[1760112463291,0.46942615,119290.0,119280.0,0.30338269]
[1760112463292,0.30176751,119290.0,119280.0,0.30338269]
[1760112463501,0.01371304,119290.0,119280.0,0.93988507]
[1760112463723,0.00596499,119290.0,119280.0,0.93988507]
[1760112463935,0.00596499,119290.0,119280.0,0.39710269]
[1760112464141,0.00596499,119290.0,119280.0,1.18632507]
[1760112465678,0.00596499,119290.0,119280.0,0.54982269]
[1760112465921,0.00596499,119290.0,119280.0,1.09260507]
[1760112466157,0.00596499,119290.0,119280.0,1.18632507]
[1760112466383,0.00511934,119290.0,119280.0,1.18632507]
[1760112467840,0.00511934,119290.0,119280.0,1.21647697]
[1760112468067,0.00511934,119290.0,119280.0,1.84238141]
[1760112468547,0.00511934,119290.0,119280.0,1.59594141]
[1760112468784,0.00511934,119290.0,119280.0,1.38015903]
[1760112469507,0.00511934,119290.0,119280.0,0.51137665]
[1760112469735,0.00511934,119290.0,119280.0,1.18728507]
[1760112470010,0.00511934,119290.0,119280.0,0.94188507]
[1760112470253,0.00511934,119290.0,119280.0,1.18728507]
[1760112470474,0.00511934,119290.0,119280.0,1.18828507]
[1760112470714,0.00500048,119290.0,119280.0,0.94188507]
[1760112470960,0.00500048,119290.0,119280.0,1.21743697]
[1760112471213,0.00500048,119290.0,119280.0,1.84334141]
[1760112471441,0.00500048,119290.0,119280.0,2.18334141]
[1760112471897,0.00500048,119290.0,119280.0,2.18434141]
[1760112472141,0.00500048,119290.0,119280.0,3.26990617]
[1760112473064,0.00500048,119290.0,119280.0,1.39515903]
[1760112473299,0.00500048,119290.0,119280.0,1.72127371]
[1760112473772,0.00500048,119290.0,119280.0,1.39431371]
[1760112474000,0.00500048,119290.0,119280.0,1.72127371]
[1760112474236,0.00500048,119290.0,119280.0,0.80351895]
[1760112474508,0.00500048,119290.0,119280.0,0.23899737]
[1760112474740,0.00500048,119290.0,119280.0,0.93679975]
[1760112475004,0.00500048,119290.0,119280.0,0.84234975]
[1760112475250,0.00500048,119290.0,119280.0,0.84134975]
[1760112475709,0.00500048,119290.0,119280.0,0.67467705]
[1760112475945,0.54965088,119290.0,119280.0,0.001]
[1760112476178,0.80370966,119290.0,119280.0,0.001]
[1760112476455,0.80370966,119290.0,119280.0,0.002]
[1760112476677,5.49400966,119290.0,119280.0,0.002]
[1760112476885,0.16768676,119270.0,119260.0,0.02499999]
[1760112477107,0.2939189,119270.0,119260.0,0.19270081]
[1760112477340,0.16768676,119270.0,119260.0,0.19270081]
[1760112477556,0.16768676,119270.0,119250.0,1.01034635]
[1760112477776,0.16770082,119260.0,119250.0,0.04517]
[1760112477998,0.16771488,119250.0,119240.0,0.06379788]
[1760112478208,0.25082288,119260.0,119240.0,0.06379788]
[1760112478209,0.28573068,119260.0,119240.0,0.78431132]
[1760112478427,0.27288276,119260.0,119250.0,0.78429725]
[1760112478663,0.44058358,119260.0,119250.0,0.02499999]
[1760112478881,0.16771488,119250.0,119240.0,0.02499999]
[1760112479104,0.25083694,119250.0,119230.0,0.19274279]
[1760112479330,0.25083694,119250.0,119240.0,0.00015126]
[1760112479546,0.25083694,119250.0,119240.0,0.21668021]
[1760112479547,0.79118194,119250.0,119240.0,0.21668021]
[1760112479764,0.62346706,119250.0,119240.0,0.75946259]
[1760112479985,0.36652276,119260.0,119250.0,0.16771488]
[1760112480224,0.00771999,119260.0,119250.0,0.94450725]
[1760112480443,0.25417999,119270.0,119250.0,0.94450725]
[1760112480661,0.25417999,119270.0,119240.0,0.02515125]
[1760112480662,0.40087832,119260.0,119240.0,0.02515125]
[1760112480869,0.25854287,119260.0,119240.0,0.24167955]
[1760112481105,0.00771999,119260.0,119250.0,0.84873725]
[1760112481324,0.00781999,119270.0,119260.0,0.19270081]
[1760112481587,0.0001,119270.0,119260.0,0.97464509]
[1760112481806,0.00771999,119280.0,119270.0,0.22283865]
[1760112482073,0.00772643,119310.0,119300.0,0.19264458]
[1760112482315,0.00773095,119310.0,119300.0,0.94443696]
[1760112482551,0.17536149,119310.0,119300.0,0.02499999]
[1760112482796,0.55230875,119310.0,119290.0,0.07379999]
[1760112483009,0.30033921,119310.0,119290.0,0.19265863]
[1760112483228,0.16764459,119300.0,119290.0,0.02499999]
[1760112483436,0.46922084,119300.0,119290.0,0.02499999]
[1760112483648,0.16765864,119290.0,119270.0,0.07379999]
[1760112483871,0.25079476,119280.0,119270.0,0.00015126]
[1760112484128,0.50488571,119280.0,119270.0,0.00015126]
[1760112484348,0.52289965,119280.0,119270.0,0.00015126]
[1760112485469,0.87839171,119280.0,119270.0,0.00015126]
[1760112485693,0.63203171,119280.0,119270.0,0.00015126]
[1760112485919,0.95899171,119280.0,119270.0,0.00015126]
[1760112486777,6.00899171,119280.0,119270.0,0.00015126]
[1760112486991,1.95149171,119280.0,119270.0,0.00015126]
[1760112487201,1.30329171,119280.0,119270.0,0.00015126]
[1760112487625,0.63203171,119280.0,119270.0,0.00015126]
[1760112487838,0.95899171,119280.0,119270.0,0.00015126]
[1760112488508,0.63203171,119280.0,119270.0,0.00015126]
[1760112488718,0.95899171,119280.0,119270.0,0.00015126]
[1760112488925,0.96346408,119280.0,119270.0,0.00015126]
[1760112489136,0.45333932,119280.0,119270.0,0.30607801]
[1760112489375,0.35969932,119280.0,119270.0,0.84886039]
[1760112489579,0.34168538,119280.0,119270.0,0.30607801]
[1760112489789,0.50935808,119280.0,119270.0,0.61673363]
[1760112489964,0.52737202,119280.0,119270.0,0.02515125]
[1760112490171,0.52737202,119280.0,119270.0,0.19283801]
[1760112490381,0.52737202,119280.0,119270.0,0.94463039]
[1760112490382,0.35969932,119280.0,119270.0,0.94463039]
[1760112490578,0.50935808,119280.0,119270.0,0.68117363]
[1760112490833,0.28101202,119280.0,119270.0,0.84986039]
[1760112491038,0.50935808,119280.0,119270.0,0.13839125]
[1760112491188,0.35969932,119280.0,119270.0,0.30607801]
[1760112491375,0.01220332,119280.0,119270.0,0.84886039]
[1760112491578,0.25856332,119280.0,119270.0,0.94463039]
[1760112491783,0.25856332,119280.0,119270.0,0.13839125]
[1760112492008,0.25856332,119280.0,119270.0,0.30607801]
[1760112492231,0.25856332,119280.0,119270.0,0.84886039]
[1760112492383,0.25856332,119280.0,119270.0,0.94463039]
[1760112492621,0.25856332,119280.0,119270.0,0.40184801]
[1760112492857,0.25856332,119280.0,119270.0,0.84886039]
[1760112493064,0.25856332,119280.0,119270.0,0.30607801]
[1760112493477,0.25856332,119280.0,119270.0,0.94463039]
[1760112493664,0.01220332,119280.0,119270.0,0.94463039]
[1760112493887,0.01220332,119280.0,119270.0,1.19099039]
[1760112494781,0.01220332,119280.0,119270.0,0.94463039]
[1760112495013,0.01220332,119280.0,119270.0,0.21663802]
[1760112495222,0.01220332,119280.0,119270.0,0.61673363]
[1760112495428,0.01220332,119280.0,119270.0,0.94463039]
[1760112496142,0.01220332,119280.0,119270.0,1.05790435]
[1760112496384,0.01220332,119280.0,119270.0,1.05990435]
[1760112496611,0.01220332,119280.0,119270.0,0.51612197]
[1760112496832,0.01220332,119280.0,119270.0,1.05790435]
[1760112497302,1e-08,119280.0,119270.0,1.47850435]
[1760112497550,0.01552356,119330.0,119320.0,0.19261648]
[1760112497800,0.0722275,119340.0,119330.0,0.16760244]
[1760112498044,0.33286757,119340.0,119330.0,0.82309275]
[1760112498525,0.33286757,119340.0,119330.0,0.28084244]
[1760112498745,0.33337187,119340.0,119330.0,0.30584243]
[1760112498986,0.30977726,119340.0,119330.0,1.08222999]
[1760112499195,0.01602786,119340.0,119330.0,1.08222999]
[1760112499399,0.0005043,119340.0,119330.0,1.08222999]
[1760112499605,0.4144127,119340.0,119330.0,0.19260243]
[1760112499815,0.2016302,119340.0,119330.0,0.02499999]
[1760112500019,0.18361626,119340.0,119330.0,0.02499999]
[1760112500216,0.16760244,119330.0,119320.0,0.07379999]
[1760112500432,0.16761649,119320.0,119310.0,0.0488]
[1760112500650,0.80883264,119330.0,119310.0,0.19263053]
[1760112500881,0.16761649,119320.0,119310.0,0.24143053]
[1760112501090,0.16761649,119320.0,119310.0,0.07379999]
[1760112501300,0.16761649,119320.0,119310.0,0.02499999]
[1760112501515,0.18314354,119320.0,119310.0,0.02499999]
[1760112501719,0.01552705,119320.0,119310.0,0.19263053]
[1760112501944,0.65675725,119330.0,119310.0,0.19263053]
[1760112502207,0.99675725,119330.0,119320.0,0.16761649]
[1760112502446,0.16761649,119320.0,119310.0,0.19262706]
[1760112502692,1.14883264,119330.0,119310.0,0.19262706]
[1760112502934,1.16436067,119330.0,119310.0,0.19262706]
[1760112503174,1.16436067,119330.0,119300.0,0.96894599]
[1760112503175,0.16763054,119310.0,119300.0,0.13730171]
[1760112503396,0.25073855,119320.0,119300.0,0.24144458]
[1760112503397,0.26875249,119320.0,119300.0,0.24144458]
[1760112503623,0.26875249,119320.0,119310.0,0.23207054]
[1760112503624,0.09864957,119320.0,119310.0,0.23207054]
[1760112503859,0.01552751,119320.0,119310.0,1.08225809]
[1760112504087,0.38155914,119340.0,119330.0,0.16760244]
[1760112504303,1.00223902,119340.0,119330.0,0.96146]
[1760112504539,0.0340463,119340.0,119330.0,1.08222999]
[1760112504763,0.0005043,119340.0,119330.0,1.08122999]
[1760112504994,0.0005043,119340.0,119330.0,0.40061243]
[1760112505231,0.0005043,119340.0,119330.0,1.32750999]
[1760112505923,0.0005043,119340.0,119330.0,0.64689243]
[1760112506175,0.0005043,119340.0,119330.0,0.30484243]
[1760112506812,0.0005043,119340.0,119330.0,1.08122999]
[1760112507023,0.0005043,119340.0,119330.0,0.40061243]
[1760112507479,0.0005043,119340.0,119330.0,1.08222999]
[1760112507888,0.0005043,119340.0,119330.0,1.32850999]
[1760112508248,0.0005043,119340.0,119330.0,1.39134204]
[1760112508450,0.0005043,119340.0,119330.0,1.42149394]
[1760112508673,0.0005043,119340.0,119330.0,1.258336]
[1760112508674,1e-08,119340.0,119330.0,1.258336]
[1760112508898,1e-08,119340.0,119330.0,0.57771844]
[1760112509136,0.00316849,119340.0,119330.0,1.504576]
[1760112509341,0.00316849,119340.0,119330.0,1.258336]
[1760112509490,0.00316849,119340.0,119330.0,1.504576]
[1760112510311,0.00316849,119340.0,119330.0,1.503576]
[1760112510520,0.00316849,119340.0,119330.0,1.258336]
[1760112510832,0.00316849,119340.0,119330.0,1.586136]
[1760112511093,0.00316849,119340.0,119330.0,1.504576]
[1760112511298,0.00316849,119340.0,119330.0,1.586136]
[1760112511747,0.00316849,119340.0,119330.0,1.926136]
[1760112511986,1e-08,119340.0,119330.0,3.28737112]
[1760112512217,0.0232783,119380.0,119370.0,0.19254627]
[1760112512455,0.08076,119390.0,119380.0,0.166492]
[1760112512456,0.02179334,119390.0,119380.0,0.166492]
[1760112512676,0.55218536,119390.0,119370.0,1.01603302]
[1760112512890,0.16753224,119380.0,119370.0,0.07194999]
[1760112513113,0.16753224,119380.0,119370.0,0.02499999]
[1760112513114,0.17528951,119380.0,119370.0,0.02499999]
[1760112513354,0.00775727,119380.0,119370.0,0.30482627]
[1760112513599,0.00211108,119380.0,119370.0,0.40074627]
[1760112513803,0.00211108,119380.0,119370.0,0.64694627]
[1760112514512,0.00211108,119380.0,119370.0,1.08136383]
[1760112514750,0.00211108,119380.0,119370.0,1.32756383]
[1760112516422,0.00211108,119380.0,119370.0,1.1433768]
[1760112516620,0.00211108,119380.0,119370.0,0.70891924]
[1760112516879,0.00211108,119380.0,119370.0,1.3895368]
[1760112517355,0.00211108,119380.0,119370.0,1.4196887]
[1760112517844,0.00211108,119380.0,119370.0,1.84281076]
[1760112518054,0.00211108,119380.0,119370.0,1.59665076]
[1760112518274,0.00211108,119380.0,119370.0,1.84281076]
[1760112519287,0.00211108,119380.0,119370.0,1.50281076]
[1760112520299,0.00211108,119380.0,119370.0,1.50381076]
[1760112520512,0.00211108,119380.0,119370.0,1.50377076]
[1760112520717,0.00211108,119380.0,119370.0,1.50477076]
[1760112521606,0.00211108,119380.0,119370.0,1.59865076]
[1760112521800,0.00211108,119380.0,119370.0,1.92533076]
[1760112522404,0.00211108,119380.0,119370.0,1.84477076]
[1760112522783,0.00211108,119380.0,119370.0,1.92533076]
[1760112523013,0.00211108,119380.0,119370.0,1.59865076]
[1760112523222,0.00211108,119380.0,119370.0,0.9180332]
[1760112523426,0.00211108,119380.0,119370.0,1.59865076]
[1760112523645,0.00211108,119380.0,119370.0,1.84477076]
[1760112523848,0.00211108,119380.0,119370.0,1.59865076]
[1760112524052,0.00211108,119380.0,119370.0,1.84477076]
[1760112524229,0.00211108,119380.0,119370.0,0.61495924]
[1760112524441,0.00211108,119380.0,119370.0,1.4216487]
[1760112524851,0.00211108,119380.0,119370.0,1.1755287]
[1760112525053,0.00211108,119380.0,119370.0,0.71083924]
[1760112525185,0.00211108,119380.0,119370.0,1.1453768]
[1760112525398,0.00211108,119380.0,119370.0,1.3914568]
[1760112525802,0.00211108,119380.0,119370.0,1.3904568]
[1760112526012,0.00211108,119380.0,119370.0,1.1443768]
[1760112526222,0.00211108,119380.0,119370.0,1.3904568]
[1760112526608,0.00211108,119380.0,119370.0,1.1433768]
[1760112526882,0.00211108,119380.0,119370.0,0.30150924]
[1760112527094,0.00211108,119380.0,119370.0,0.97583052]
[1760112527303,0.00211108,119380.0,119370.0,1.3894568]
[1760112527508,0.00211108,119380.0,119370.0,0.70883924]
[1760112527709,0.00211108,119380.0,119370.0,1.3894568]
[1760112528072,0.00211108,119380.0,119370.0,0.61291924]
[1760112528948,0.00211108,119380.0,119370.0,1.91244579]
[1760112529161,0.00015122,119390.0,119380.0,0.90330169]
[1760112529364,0.00015122,119390.0,119380.0,1.13249375]
[1760112529573,0.00015122,119390.0,119380.0,1.19619375]
[1760112530014,0.00015122,119390.0,119380.0,1.11307169]
[1760112530218,0.00015122,119390.0,119380.0,0.40230223]
[1760112530445,0.00015122,119390.0,119380.0,1.08291979]
[1760112530657,0.00015122,119390.0,119380.0,1.22955979]
[1760112531299,0.00015122,119390.0,119380.0,1.32899979]
[1760112533013,0.00015122,119390.0,119380.0,1.22955979]
[1760112533228,0.00015122,119390.0,119380.0,1.32899979]
[1760112533438,0.00015122,119390.0,119380.0,1.35915169]
[1760112533679,0.00015122,119390.0,119380.0,1.44227375]
[1760112535181,0.00067885,119390.0,119380.0,1.44227375]
[1760112536455,0.00067885,119390.0,119380.0,1.41212185]
[1760112537091,0.00067885,119390.0,119380.0,1.44427375]
[1760112537298,0.00067885,119390.0,119380.0,1.44327375]
[1760112537504,0.00067885,119390.0,119380.0,1.44227375]
[1760112537721,0.00796406,119410.0,119400.0,0.19250417]
[1760112537930,0.00796406,119410.0,119400.0,1.16579173]
[1760112538163,0.00796406,119410.0,119400.0,1.35367363]
[1760112539415,0.00796406,119410.0,119400.0,1.43679569]
[1760112539626,0.00796406,119410.0,119400.0,1.77679569]
[1760112540266,0.00796406,119410.0,119400.0,3.13803081]
[1760112540482,1e-08,119410.0,119400.0,3.13803081]
[1760112540698,1e-08,119420.0,119410.0,0.53249014]
[1760112540939,1e-08,119420.0,119410.0,1.43982976]
[1760112541154,1e-08,119420.0,119410.0,1.49987976]
[1760112541582,1e-08,119420.0,119410.0,1.56194735]
[1760112541799,1e-08,119420.0,119410.0,1.59209925]
[1760112542277,1e-08,119420.0,119410.0,1.91861925]
[1760112542902,1e-08,119420.0,119410.0,1.93898207]
[1760112543108,1e-08,119420.0,119410.0,1.93998207]
[1760112543328,1e-08,119420.0,119410.0,1.61346207]
[1760112543555,1e-08,119420.0,119410.0,1.25936451]
[1760112543787,1e-08,119420.0,119410.0,1.26036451]
[1760112544003,1e-08,119420.0,119410.0,1.94098207]
[1760112544876,1e-08,119420.0,119410.0,1.61446207]
[1760112545096,1e-08,119420.0,119410.0,1.26036451]
[1760112545319,1e-08,119420.0,119410.0,1.94098207]
[1760112545537,1e-08,119420.0,119410.0,1.86042207]
[1760112545753,1e-08,119420.0,119410.0,1.61446207]
[1760112545987,1e-08,119420.0,119410.0,1.30446735]
[1760112546202,1e-08,119420.0,119410.0,0.46020773]
[1760112546441,1e-08,119420.0,119410.0,1.3617853]
[1760112546641,1e-08,119420.0,119410.0,1.41693719]
[1760112546855,1e-08,119420.0,119410.0,1.38678529]
[1760112547066,1e-08,119420.0,119410.0,0.33652774]
[1760112547320,1e-08,119420.0,119410.0,0.60748773]
[1760112547522,1e-08,119420.0,119410.0,0.70516773]
[1760112548157,1e-08,119420.0,119410.0,0.60748773]
[1760112548612,1e-08,119420.0,119410.0,0.60648773]
[1760112548819,0.00158246,119420.0,119410.0,1.38478529]
[1760112551012,0.00158246,119420.0,119410.0,1.49805925]
[1760112551450,1e-08,119420.0,119410.0,1.49805925]
[1760112552089,1e-08,119420.0,119410.0,0.81744169]
[1760112552302,1e-08,119420.0,119410.0,1.25209925]
[1760112552495,1e-08,119420.0,119410.0,1.91853925]
[1760112552954,1e-08,119420.0,119410.0,1.91953925]
[1760112553370,1e-08,119420.0,119410.0,1.92053925]
[1760112553786,1e-08,119420.0,119410.0,1.81901925]
[1760112554008,1e-08,119420.0,119410.0,1.21892169]
[1760112554219,1e-08,119420.0,119410.0,1.90053925]
[1760112554617,1e-08,119420.0,119410.0,1.21892169]
[1760112554849,1e-08,119420.0,119410.0,1.57209925]
[1760112555057,1e-08,119420.0,119410.0,1.89849925]
[1760112555293,1e-08,119420.0,119410.0,0.89248169]
[1760112555506,1e-08,119420.0,119410.0,1.79301926]
[1760112555723,1e-08,119420.0,119410.0,1.81801925]
[1760112555942,1e-08,119420.0,119410.0,1.81901925]
[1760112556401,1e-08,119420.0,119410.0,1.82001925]
[1760112556610,1e-08,119420.0,119410.0,1.81901925]
[1760112557062,1e-08,119420.0,119410.0,1.82001925]
[1760112557294,0.20567556,119460.0,119440.0,0.16744809]
[1760112557558,0.16743407,119450.0,119430.0,0.21338211]
[1760112557763,0.08312206,119450.0,119440.0,0.16744809]
[1760112558020,0.37661816,119450.0,119440.0,0.16744809]
[1760112558286,0.39461874,119450.0,119440.0,0.27341809]
[1760112558777,0.39461874,119450.0,119440.0,0.21336809]
[1760112559017,0.31149668,119450.0,119440.0,1.07671564]
[1760112559234,0.0204047,119460.0,119450.0,0.19243406]
[1760112559482,0.29360888,119460.0,119450.0,1.26253162]
[1760112559679,0.00115108,119460.0,119450.0,1.3210009]
[1760112560658,0.00015108,119460.0,119450.0,1.38342446]
[1760112560906,0.00015108,119460.0,119450.0,1.24545518]
[1760112561145,0.00115108,119460.0,119450.0,1.35872914]
[1760112562758,0.00015108,119460.0,119450.0,1.35872914]
[1760112563215,0.00015108,119460.0,119450.0,1.11245414]
[1760112563445,0.00015108,119460.0,119450.0,1.35829414]
[1760112563980,0.00015108,119460.0,119450.0,1.32814224]
[1760112564253,0.00015108,119460.0,119450.0,1.35829414]
[1760112565139,0.00015108,119460.0,119450.0,1.11245414]
[1760112565382,0.00015108,119460.0,119450.0,0.81722658]
[1760112565577,0.00015108,119460.0,119450.0,1.35829414]
[1760112565780,0.00015108,119460.0,119450.0,0.81722658]
[1760112565994,0.00015108,119460.0,119450.0,1.35829414]
[1760112566443,0.00015108,119460.0,119450.0,0.45811262]
[1760112566689,0.00015108,119460.0,119450.0,0.25485762]
[1760112566916,0.00015108,119460.0,119440.0,0.02499999]
[1760112566917,0.16743407,119450.0,119440.0,0.02499999]
[1760112567144,0.46091967,119450.0,119440.0,0.19244808]
[1760112567368,0.47892025,119450.0,119440.0,0.19244808]
[1760112568065,0.56204231,119450.0,119440.0,0.02499999]
[1760112568289,0.16744809,119440.0,119430.0,0.4382621]
[1760112568735,0.16744809,119440.0,119430.0,0.1924621]
[1760112568951,0.25057015,119440.0,119430.0,0.02499999]
[1760112569168,0.27400546,119440.0,119430.0,0.1924621]
[1760112569416,0.27400546,119440.0,119430.0,0.02499999]
[1760112569615,0.27400546,119440.0,119430.0,0.16746211]
[1760112569829,0.10655737,119440.0,119430.0,0.27994211]
[1760112570047,0.02343531,119440.0,119430.0,1.18231966]
[1760112570263,0.02343531,119450.0,119440.0,0.16744809]
[1760112570481,0.54900748,119460.0,119440.0,0.30492808]
[1760112570697,0.16743407,119450.0,119440.0,0.02499999]
[1760112570909,0.16743407,119450.0,119430.0,0.2008352]
[1760112570910,0.16744809,119440.0,119430.0,0.2008352]
[1760112571135,0.02343531,119440.0,119430.0,0.2008352]
[1760112571355,0.56205631,119450.0,119440.0,0.16744809]
[1760112571356,0.41805755,119450.0,119440.0,0.16744809]
[1760112571603,0.40105697,119450.0,119440.0,0.16744809]
[1760112571824,0.58656697,119450.0,119440.0,0.16744809]
[1760112572027,0.58656678,119450.0,119430.0,0.4466352]
[1760112572234,0.16744809,119440.0,119430.0,0.4466352]
[1760112572443,0.02343531,119440.0,119430.0,0.4466352]
[1760112572653,0.58656678,119450.0,119440.0,0.16744809]
[1760112572922,0.41913271,119450.0,119440.0,0.16744809]
[1760112573134,0.56749104,119450.0,119440.0,0.16744809]
[1760112573340,0.58556695,119450.0,119440.0,0.16744809]
[1760112573552,0.56749104,119450.0,119440.0,0.16744809]
[1760112573961,0.40005697,119450.0,119440.0,0.23344809]
[1760112574171,0.56849104,119450.0,119440.0,0.23344809]
[1760112574380,0.57007289,119450.0,119440.0,0.16744809]
[1760112574807,0.40263882,119450.0,119440.0,0.16744809]
[1760112575010,0.57007289,119450.0,119440.0,0.16744809]
[1760112575214,0.40263882,119450.0,119440.0,0.16744809]
[1760112575637,0.57007289,119450.0,119440.0,0.16744809]
[1760112575846,0.57007404,119450.0,119440.0,0.16744809]
[1760112577145,0.01039362,119450.0,119440.0,1.18230564]
[1760112577392,0.00258185,119450.0,119440.0,1.3827796]
[1760112577627,0.00015108,119460.0,119450.0,0.22258596]
[1760112577862,0.00015108,119460.0,119450.0,0.98376558]
[1760112578102,0.00015108,119460.0,119450.0,1.04976558]
[1760112578348,0.00015108,119460.0,119450.0,0.42557596]
[1760112578559,0.00015108,119460.0,119450.0,0.64122406]
[1760112578763,0.00015108,119460.0,119450.0,1.18229162]
[1760112579230,0.00015108,119460.0,119450.0,0.16843407]
[1760112579423,0.16757113,119460.0,119450.0,0.16843407]
[1760112579630,0.88414969,119460.0,119450.0,0.001]
[1760112580037,1.18414969,119460.0,119450.0,0.001]
[1760112580247,1.1997812,119460.0,119450.0,0.001]
[1760112580459,1.03236115,119460.0,119450.0,0.16843407]
[1760112580668,1.4455412,119460.0,119450.0,0.16843407]
[1760112581290,1.4455412,119460.0,119440.0,0.2139272]
[1760112581500,0.08312206,119450.0,119440.0,0.2139272]
[1760112581712,0.25055613,119450.0,119440.0,0.2139272]
[1760112581921,0.25055613,119450.0,119440.0,0.16744809]
[1760112582342,0.08312206,119450.0,119440.0,0.16744809]
[1760112582554,0.08312206,119450.0,119440.0,0.21392809]
[1760112582763,0.08312206,119450.0,119430.0,0.23894132]
[1760112582764,0.25055613,119450.0,119430.0,0.23894132]
[1760112582970,0.25055613,119450.0,119440.0,0.16744809]
[1760112583181,0.54404663,119450.0,119440.0,0.16744809]
[1760112584033,0.37661256,119450.0,119440.0,0.16744809]
[1760112584244,0.3922373,119450.0,119440.0,0.23344809]
[1760112584495,0.6379973,119450.0,119440.0,0.27992809]
[1760112584931,0.80543137,119450.0,119440.0,0.16744809]
[1760112585151,0.6379973,119450.0,119440.0,0.23344809]
[1760112585364,0.80543505,119450.0,119440.0,0.27992809]
[1760112585823,0.80543505,119450.0,119440.0,0.11248]
[1760112586033,0.80543505,119450.0,119440.0,0.16744809]
[1760112586239,0.80543505,119450.0,119430.0,0.07288692]
[1760112586422,0.16744809,119440.0,119430.0,0.02640692]
[1760112586653,0.18307651,119440.0,119430.0,0.19386903]
[1760112587162,0.01562842,119440.0,119430.0,0.19386903]
[1760112587402,0.80545656,119450.0,119430.0,0.25986903]
[1760112587661,0.34452289,119450.0,119440.0,0.84550565]
[1760112587896,0.63801029,119450.0,119440.0,0.82099565]
[1760112588113,0.2934874,119450.0,119440.0,0.91150565]
[1760112588281,0.00067825,119460.0,119450.0,0.19243406]